[Event "25th Nepal Championship 2025"]
[Site "Hetauda"]
[Date "2025.01.29"]
[Round "6.6"]
[White "Rai, Dhiren"]
[Black "Jaiswal, Rupesh"]
[Result "0-1"]
[Annotator "TA"]
[ECO "E60"]
[WhiteElo "1878"]
[BlackElo "2093"]
[PlyCount "100"]
[EventDate "2025.01.24"]
[EventType "tourn"]
[EventCountry "NEP"]
[SourceTitle "playchess.com"]
[Source "ChessBase"]
[SourceQuality "1"]
[TimeControl "5400+30"]

{[%evp 9,100,0,6,10,33,14,23,7,20,7,18,10,19,25,28,13,19,27,31,13,45,24,31,20,47,16,33,22,21,19,27,10,35,-58,29,6,93,79,163,60,65,89,87,59,50,0,35,-119,-118,-116,-115,-102,-52,-75,-50,-54,0,0,0,0,0,0,0,0,233,210,622,616,568,555,485,285,1034,450,2766,2709,29978,1665,5204,4531,2070,913,795,122,122,142,141,0,0,-346,-224,-372,-372]} 1. d4 {[%emt 0:00:28]} Nf6 {[%emt 0:00:12]} 2. c4 {[%emt 0:02:05]} g6 {[%emt 0:00:16]} 3. e3 {[%emt 0:00:12]} Bg7 {[%emt 0:00:15]} 4. Nf3 {[%emt 0:00:15]} c5 {[%emt 0:01:37]} 5. Bd3 {[%emt 0:04:52]} O-O {[%emt 0:00:57]} 6. d5 {[%emt 0:04:08] E60: King's Indian: Unusual lines and Fianchetto Variation without Nc3.} d6 {[%emt 0:00:48][%cal Ob7b5]} 7. O-O {[%emt 0:01:08]} e6 {[%emt 0:01:11]} 8. e4 {[%emt 0:00:16] White has an edge.} a6 {[%emt 0:02:28][%cal Ob7b5]} 9. Nc3 {[%emt 0:02:39]} exd5 {[%emt 0:05:39]} 10. exd5 {[%emt 0:00:25]} Bg4 {[%emt 0:00:08]} 11. h3 {[%emt 0:00:12]} Bxf3 {[%emt 0:00:14]} 12. Qxf3 {[%emt 0:00:11]} Nbd7 {[%emt 0:00:12]} 13. Qd1 $146 {[%emt 0:04:13]} (13. Bf4 Ne5 14. Bxe5 dxe5 15. Rfe1 e4 16. Bxe4 Nxe4 17. Qxe4 Qd6 18. Qe7 Qf4 19. Qe3 Qxc4 {1-0 Vermeulen,A (1307)-Goti,J (1287) FICGS class E 000162 email 2013 (1)}) 13... Re8 {[%emt 0:03:24]} 14. Bd2 {[%emt 0:09:33]} Qc7 {[%emt 0:11:36]} 15. a4 {[%emt 0:05:36]} Re7 {[%emt 0:01:41]} 16. Kh2 {[%emt 0:06:07]} Ne8 {[%emt 0:16:38]} 17. g4 {[%emt 0:08:06]} Bd4 {[%emt 0:01:31]} 18. f4 {[%emt 0:05:15]} Ng7 {[%emt 0:00:27]} 19. Qc2 {[%emt 0:00:58]} Rae8 {[%emt 0:03:07]} 20. Rf3 {[%emt 0:05:22]} Qd8 {[%emt 0:07:48]} 21. Ne4 {[%emt 0:07:33]} (21. Rg3 $14) 21... Nf6 {[%emt 0:02:14]} (21... f5 $1 $15 22. gxf5 (22. Nxd6 $2 Re2+ 23. Kh1 fxg4 $19) 22... Nxf5) 22. Ng3 $11 {[%emt 0:04:46]} Nd7 {[%emt 0:10:27]} (22... Qd7 $11 {keeps the balance.}) 23. Raf1 $16 {[%emt 0:01:26]} Be3 {[%emt 0:04:20]} (23... h5 $16 {was called for.}) 24. Bc3 {[%emt 0:00:14]} (24. f5 $1 $18 {[%cal Rf5f6]}) 24... Bd4 $14 {[%emt 0:00:13]} 25. Bxd4 {[%emt 0:07:11]} cxd4 {[%emt 0:00:04]} 26. Ne4 {[%emt 0:00:13]} Qc7 {[%emt 0:10:16]} 27. b4 {[%emt 0:06:20]} ({White should try} 27. f5 $14) 27... f5 {[%emt 0:04:48] [#]} 28. Nxd6 {[%emt 0:00:43]} Qxd6 $17 {[%emt 0:00:28]} 29. c5 {[%emt 0:14:33] [#]} Qf6 {[%emt 0:01:45]} (29... Qxd5 $2 30. Bc4 $18) 30. g5 {[%emt 0:00:00]} Qf8 {[%emt 0:00:05]} (30... Qf7 $17 {[%cal Oe7e4]} 31. a5 Nb8 (31... Qxd5 $2 32. Bc4 $18)) 31. Qc4 $15 {[%emt 0:00:00] [#]} Re4 $1 {[%emt 0:01:28][%cal Of8f7]} 32. a5 {[%emt 0:00:00][%cal Of3f2] [#]} (32. R3f2 Qe7) 32... Rc8 {[%emt 0:02:53]} 33. R3f2 $11 {[%emt 0:00:00]} Nxc5 {[%emt 0:01:16]} 34. bxc5 {[%emt 0:00:00]} Qxc5 {[%emt 0:00:24]} (34... Rxc5 35. Qa4 Re8 36. Rb1 $14) 35. Qb3 {[%emt 0:00:00]} Rd8 {[%emt 0:03:13]} 36. Qxb7 {[%emt 0:00:00]} Kh8 $2 {[%emt 0:00:16]} 37. Rc2 {[%emt 0:00:00]} (37. Bxa6 Qxa5 38. Bb5 Re3 $17) (37. Qxa6 Ree8 $16) 37... Qd6 {[%emt 0:02:02]} (37... Re7 38. Rxc5 (38. Qxa6 Qxd5 39. Bc4 Qc5 $16) 38... Rxb7 39. Bxa6 Rb2+ 40. Kg1 h6) 38. Bxe4 $18 {[%emt 0:00:00]} (38. Bxa6 Rxf4 39. Kg2 Re8 $11) 38... fxe4 {[%emt 0:00:10][%cal Bf5e4,Be4e3][%mdl 32]} 39. Rc7 {[%emt 0:00:00]} Rg8 {[%emt 0:00:51]} 40. Re7 {[%emt 0:00:00]} (40. Qc6 $142 Qb4 41. Rxg7 (41. Qxa6 Qd2+ 42. Kg1 Qe3+ 43. Kg2 Nh5 $18) 41... Qb2+ (41... Qd2+ $2 42. Kh1 $18) 42. Kg3 Rxg7 43. Qe8+ (43. Qxa6 Qb3+ 44. Kg2 Qxd5 $14) 43... Rg8 44. Qe5+ (44. Qxe4 h6 $18) 44... Rg7 45. d6 (45. Qxe4 Rb7 $18)) 40... Qa3 {[%emt 0:00:57]} (40... e3 41. Re5 Qc5) 41. d6 {[%emt 0:00:14]} (41. Rxe4 Nf5 $11) (41. Rxg7 $142 Rxg7 42. Qb8+ (42. Qxa6 Qb2+ 43. Kg1 Qc3 $16) 42... Rg8 43. Qe5+ Rg7 44. d6 (44. Qxd4 Kg8 $18) (44. Qxe4 Rb7 $18) 44... Qb2+ 45. Kg3 (45. Kg1 Qc3 $18) 45... Qb3+ 46. Kg4) 41... Qd3 {[%emt 0:00:59]} (41... Qxd6 $142 42. Qxe4 d3) 42. Rf2 {[%emt 0:00:29][%cal Oe7g7] Intending Rxg7! and mate.} e3 {[%emt 0:00:20]} 43. Rg2 {[%emt 0:00:07]} (43. Rxg7 $142 Rxg7 44. d7 Rg8 45. Qd5 Rf8 46. d8=Q (46. d8=R Qf5 $18) 46... Rxd8 47. Qxd8+ Kg7 48. Rb2 Qd2+ 49. Rxd2) 43... Qf5 {[%emt 0:00:32]} 44. Rf7 {[%emt 0:00:26]} (44. Qxa6 Qxf4+ 45. Kg1 Nf5 $16) 44... Qe6 {[%emt 0:00:43]} 45. Rf6 {[%emt 0:03:21]} (45. Rc2 $142 Qe8 46. Rcc7) 45... Qe8 {[%emt 0:02:07]} 46. Qe7 $2 {[%emt 0:01:47]} (46. Qxa6 $18 Qa4 47. Qd3) 46... Qxe7 $16 {[%emt 0:00:00]} 47. dxe7 {[%emt 0:00:02][%cal Of6f8] White has a king side majority} Nf5 {[%emt 0:00:00]} 48. Re6 {[%emt 0:01:02]} (48. Rxa6 $16 {Hoping for Re6.} d3 49. Re6) 48... Re8 $11 {[%emt 0:00:01] ...d3 would now be deadly. The board is on fire.} 49. Kg1 $2 {[%emt 0:00:19][%mdl 8192]} (49. Rxa6 d3 50. Re6 d2 $19) (49. Re2 $1 $11 {and White stays safe.}) 49... d3 {[%emt 0:00:21] ( -> ...d2)} 50. Kf1 {[%emt 0:00:12]} (50. Rxa6 $2 {perishes.} d2 (50... Rxe7 $2 51. Rb6 $19) 51. Kh2 d1=Q $19 (51... d1=B 52. Re6 $15)) (50. Rxe3 {was forced.} Nxe3 51. Rd2) 50... d2 {[%emt 0:00:16] Weighted Error Value: White=0.84/Black=0.77  Loses game:     	White=1     	Black=1      Mistake:       	White=8     	Black=8      Inaccurate:     	White=1     	Black=5      OK:         	White=9     	Black=12     Best:        	White=3     	Black=3} ({Less strong is} 50... Rxe7 51. Rxe7 Nxe7 52. Rb2 $17) 0-1

[Event "25th Nepal Championship 2025"]
[Site "Hetauda"]
[Date "2025.01.29"]
[Round "7.1"]
[White "Jaiswal, Rupesh"]
[Black "Silwal, Purushottam"]
[Result "1/2-1/2"]
[Annotator "TA"]
[ECO "A45"]
[WhiteElo "2093"]
[BlackElo "2045"]
[PlyCount "41"]
[EventDate "2025.01.24"]
[EventType "tourn"]
[EventCountry "NEP"]
[SourceTitle "playchess.com"]
[Source "ChessBase"]
[SourceQuality "1"]
[TimeControl "5400+30"]

{[%evp 9,41,14,14,-2,49,36,89,42,156,187,219,245,204,183,228,234,202,208,731,393,682,414,655,286,288,214,265,262,272,270,271,271,270,135]} 1. d4 {[%emt 0:00:02]} Nf6 {[%emt 0:00:06]} 2. Bf4 {[%emt 0:00:04]} c5 {[%emt 0:00:04]} 3. dxc5 {[%emt 0:01:02]} Qa5+ {[%emt 0:07:02]} 4. c3 {[%emt 0:00:53]} Qxc5 {[%emt 0:00:05]} 5. Nf3 {[%emt 0:00:26]} Nc6 {[%emt 0:00:33]} 6. e3 {[%emt 0:01:25] A45: Trompowsky Attack.} a5 $146 {[%emt 0:02:23]} (6... e5 $11 7. Bg3 d6) (6... e5 7. Bg3 a5 8. Nbd2 a4 9. Be2 d6 10. Qc2 Be7 11. O-O O-O 12. h3 Re8 {1-0 Alvarado Quintero,L (1826)-Rojas Rojas,S (1810) Bogota Rapid op 2024 (3)}) 7. Na3 {[%emt 0:02:01] [#]} d6 {[%emt 0:04:42]} (7... e5 $14 8. Bg5 Be7) 8. Nb5 {[%emt 0:02:12]} ({White should try} 8. e4 $16) 8... Qb6 {[%emt 0:00:33]} ({Better is} 8... Na7 $14 9. Qd4 Nxb5 10. Qxc5 dxc5 11. Bxb5+ Bd7) 9. Qb3 $16 {[%emt 0:01:16][%cal Ob5d6] White is more active.} Qd8 {[%emt 0:04:11]} 10. Bc4 {[%emt 0:01:20]} e5 {[%emt 0:01:10]} 11. Bg5 {[%emt 0:01:58]} a4 {[%emt 0:02:42]} ({Wrong is} 11... d5 $2 12. Bxd5 Bc5 13. Bxf7+ Kf8 14. Rd1 $18) 12. Bxf7+ {[%emt 0:02:22]} Ke7 {[%emt 0:00:05]} 13. Qc4 {[%emt 0:00:04]} h6 $2 {[%emt 0:00:30]} (13... Ra5) 14. Bxf6+ {[%emt 0:00:13]} gxf6 $2 {[%emt 0:00:13]} (14... Kxf6 15. O-O-O a3) 15. Bd5 {[%emt 0:00:18][%cal Of3h4] [#] Strongly threatening Nh4!.} Bd7 {[%emt 0:00:26]} (15... Qb6 $142 16. Nh4 Kd8) 16. e4 {[%emt 0:00:23]} (16. Nh4 $142 {White threatens Ng6+ and mate.} Rh7 17. Rd1) 16... Qb6 $18 {[%emt 0:00:12]} 17. Qe2 {[%emt 0:00:22]} Nb4 {[%emt 0:00:09] And now ...Nxd5 would win.} 18. Bc4 {[%emt 0:01:02] White has a decisive advantage.} Bxb5 {[%emt 0:00:18]} 19. Bxb5 {[%emt 0:00:02]} Nc2+ {[%emt 0:00:15]} 20. Qxc2 {[%emt 0:00:02]} Qxb5 {[%emt 0:00:08]} 21. Qe2 {[%emt 0:00:08] Black got outplayed after the opening.   Weighted Error Value: White=0.97/Black=1.00  Mistake:       	White=2     	Black=6      Inaccurate:     	White=1     	---        OK:         	White=2     	Black=5      Best:        	White=2     	Black=1} (21. O-O-O $18) 1/2-1/2

[Event "25th Nepal Championship 2025"]
[Site "Hetauda"]
[Date "2025.01.29"]
[Round "7.2"]
[White "Tandukar, Nabin"]
[Black "Rai, Dhiren"]
[Result "0-1"]
[Annotator "TA"]
[ECO "B77"]
[WhiteElo "1920"]
[BlackElo "1878"]
[PlyCount "154"]
[EventDate "2025.01.24"]
[EventType "tourn"]
[EventCountry "NEP"]
[SourceTitle "playchess.com"]
[Source "ChessBase"]
[SourceQuality "1"]
[TimeControl "5400+30"]

{[%evp 17,154,27,50,38,59,50,73,59,72,61,66,64,145,136,157,158,158,147,145,137,155,122,124,111,154,106,89,92,105,102,89,77,114,108,112,108,106,112,110,95,89,69,66,78,75,79,78,77,72,68,83,87,84,66,68,67,60,13,19,40,74,26,100,95,104,111,311,297,353,364,377,377,362,343,305,93,79,58,30,41,46,46,40,0,11,0,0,0,112,114,192,174,206,0,0,0,0,0,0,0,0,0,0,0,0,0,0,-544,-537,-520,-453,-536,-481,-459,-460,-418,-418,-418,-83,-403,-366,-779,-779,-1018,-1018,-989,-971,-1013,-827,-1404,-1406,-1740,-1513,-6020,-860,-5047,-7850,-7190,-6384]} 1. e4 {[%emt 0:00:04]} c5 {[%emt 0:00:04]} 2. Nf3 {[%emt 0:00:07]} Nc6 {[%emt 0:00:11]} 3. d4 {[%emt 0:00:07]} cxd4 {[%emt 0:00:06]} 4. Nxd4 {[%emt 0:00:04]} d6 {[%emt 0:00:22]} 5. Bc4 {[%emt 0:00:16]} g6 {[%emt 0:01:27]} 6. Nc3 {[%emt 0:03:04]} Bg7 {[%emt 0:00:21]} 7. Be3 {[%emt 0:00:07]} Nf6 {[%emt 0:00:17]} 8. f3 {[%emt 0:00:17]} O-O {[%emt 0:00:27]} 9. Qd2 {[%emt 0:00:06]} e6 {[%emt 0:06:29][%cal Be7e6,Be6d5,Bd5c4][%mdl 32]} 10. O-O-O {[%emt 0:00:11] B77: Sicilian Dragon: Yugoslav Attack, 9 Bc4 sidelines.} d5 {[%emt 0:00:39]} 11. exd5 {[%emt 0:00:04]} Nxd5 {[%emt 0:00:06]} 12. Nxd5 {[%emt 0:02:28] White is better.} exd5 {[%emt 0:00:07]} 13. Bb3 {[%emt 0:00:12]} Na5 {[%emt 0:03:01]} 14. Bh6 {[%emt 0:01:52]} Nc4 $146 {[%emt 0:01:35]} (14... Bxh6 $14 15. Qxh6 Nxb3+ 16. Nxb3 (16. axb3 a5 $14) 16... Re8) (14... Nxb3+ 15. Nxb3 Be6 16. h4 Qf6 17. Bxg7 Kxg7 18. h5 g5 19. Nd4 h6 20. Rhe1 Rfe8 {1-0 Krivoborodov,E (2503)-Blechzin,I (2446) Schwarzach op 27th 2012 (7)}) 15. Bxc4 $16 {[%emt 0:00:50]} dxc4 {[%emt 0:00:02]} 16. Bxg7 {[%emt 0:00:16]} Kxg7 {[%emt 0:00:05]} 17. h4 {[%emt 0:00:42]} h6 {[%emt 0:00:42]} 18. g4 {[%emt 0:00:20][%cal Bg2g4,Bg4g5][%mdl 32]} Qc7 {[%emt 0:01:28]} 19. g5 {[%emt 0:01:04]} h5 {[%emt 0:00:11]} 20. Nb5 {[%emt 0:01:59]} Qc5 {[%emt 0:01:58]} 21. Nd6 {[%emt 0:01:09]} (21. Qc3+ $142 $1 Kg8 22. Nd6) 21... c3 {[%emt 0:02:18]} 22. Qxc3+ {[%emt 0:04:09] White attacks} (22. bxc3 Qa3+ 23. Kb1 Be6 $11) 22... Qxc3 {[%emt 0:00:08]} 23. bxc3 {[%emt 0:00:24]} Be6 {[%emt 0:00:44]} 24. Kb2 {[%emt 0:00:11]} b5 {[%emt 0:01:06]} 25. Rd4 {[%emt 0:00:30]} (25. Nxb5 $2 Rfb8 26. a4 a6 $19) 25... Rfb8 {[%emt 0:00:50]} 26. Re1 {[%emt 0:00:15]} Rb6 {[%emt 0:01:21]} 27. Re5 {[%emt 0:03:39]} Rab8 {[%emt 0:00:43]} 28. Ne4 {[%emt 0:05:17]} Rc6 {[%emt 0:04:22]} 29. Rc5 {[%emt 0:09:26]} Rxc5 {[%emt 0:02:18]} 30. Nxc5 $14 {[%emt 0:00:03][%mdl 4096] Endgame KRB-KRN. White is a pawn up.} Bf5 {[%emt 0:00:12]} 31. Ne4 {[%emt 0:01:38]} Kf8 {[%emt 0:00:58]} 32. Nf6 {[%emt 0:06:16]} Ke7 {[%emt 0:01:29]} 33. Kc1 {[%emt 0:00:57]} Rc8 {[%emt 0:01:38]} 34. Kd2 {[%emt 0:00:12]} Be6 {[%emt 0:00:20][%cal Oc8c4]} 35. a3 {[%emt 0:00:31]} Rc5 {[%emt 0:01:22]} 36. f4 {[%emt 0:00:18]} Rc6 {[%emt 0:01:01]} 37. a4 {[%emt 0:00:13]} (37. Ng8+ $1 $14 Ke8 38. Nf6+ Kf8 39. Nd5) 37... bxa4 $11 {[%emt 0:00:30]} 38. Rxa4 {[%emt 0:00:17]} a6 {[%emt 0:00:16][%cal Ba7a6,Ba6a5][%mdl 32]} 39. Rb4 {[%emt 0:01:07]} (39. Kd3 $16) 39... Rc4 {[%emt 0:04:20]} (39... a5 $11 40. Rd4 Rd6) 40. Kd3 $16 {[%emt 0:00:21]} Rc7 {[%emt 0:00:33]} 41. Kd4 {[%emt 0:00:19]} Rc6 $2 {[%emt 0:02:00]} (41... a5 $16 42. Ra4 Ra7) 42. c4 $18 {[%emt 0:00:21][%cal Bc3c4,Bc4c5][%mdl 32]} a5 {[%emt 0:01:42]} 43. Rb7+ {[%emt 0:00:10]} Kd8 {[%emt 0:00:14][%cal Od8c8]} 44. c5 {[%emt 0:00:21]} Ra6 {[%emt 0:00:06]} 45. Rb6 $1 {[%emt 0:03:58]} Ra7 {[%emt 0:04:43]} 46. c4 $2 {[%emt 0:04:49]} (46. f5 $1 $18 {[%cal Rf5e6] and the rest is easy.} Bxf5 47. c6) 46... a4 $16 {[%emt 0:00:13]} 47. Nd5 {[%emt 0:00:13]} a3 {[%emt 0:00:24]} 48. Rb1 {[%emt 0:00:20]} (48. c6 $2 a2 49. Rb8+ Bc8 $19) 48... Kd7 {[%emt 0:03:43]} 49. Ra1 $1 {[%emt 0:00:45]} Ra5 {[%emt 0:01:53]} 50. Ra2 {[%emt 0:01:23]} Bf5 {[%emt 0:00:46]} 51. Nc3 {[%emt 0:00:24] and Nb5 should not be overlooked} Be6 $1 {[%emt 0:01:13]} 52. Nd5 {[%emt 0:04:50]} Ra7 {[%emt 0:00:52]} (52... Bf5 $11) 53. Nb4 {[%emt 0:01:14]} Ra4 {[%emt 0:01:17]} (53... Ra5 $16 {is a better defense.}) 54. Kc3 $1 $18 {[%emt 0:00:11]} Ra5 {[%emt 0:00:45]} 55. Rd2+ $2 {[%emt 0:03:52]} ({Better is} 55. Nd3 $1 $18 {[%cal Rd3e5]}) 55... Kc7 $11 {[%emt 0:00:13]} 56. Kb3 {[%emt 0:00:23]} Kb7 {[%emt 0:00:49]} 57. c6+ {[%emt 0:00:30]} Kb6 {[%emt 0:00:15]} 58. Re2 {[%emt 0:03:32]} Ra8 {[%emt 0:02:10]} 59. Re5 {[%emt 0:02:19]} Kc7 {[%emt 0:01:48]} 60. Re2 {[%emt 0:03:30]} Kd6 {[%emt 0:00:27]} 61. Ra2 {[%emt 0:01:13]} Kc5 {[%emt 0:00:14]} 62. Rxa3 $2 {[%emt 0:01:50][%mdl 8192]} (62. Nd3+ $1 $11 {and White is okay.} Kxc6 63. Kb4) 62... Bxc4+ $19 {[%emt 0:00:14]} 63. Kb2 {[%emt 0:00:29]} Rb8 {[%emt 0:01:30]} 64. c7 {[%emt 0:00:10]} Rxb4+ {[%emt 0:00:16] KRB-KR} 65. Kc3 {[%emt 0:00:10]} Be6 {[%emt 0:00:21]} 66. Ra5+ {[%emt 0:01:24]} Rb5 {[%emt 0:00:09]} 67. Ra8 {[%emt 0:00:38] [#]} Rb3+ $2 {[%emt 0:01:16]} (67... Kd5 $1 $19 {is more deadly. And now ...Rc5+ would win.} 68. c8=Q Bxc8 69. Rxc8 Ke4 70. Re8+ Kxf4) 68. Kc2 $2 {[%emt 0:00:44][%mdl 8192] [#]} (68. Kd2 $17) 68... Rf3 $1 {[%emt 0:00:14]} 69. Ra6 $2 {[%emt 0:08:39]} (69. f5 Bxf5+ 70. Kd2) 69... Bf5+ {[%emt 0:07:52] Black is clearly winning.} (69... Rxf4 $2 {too greedy.} 70. Rxe6 fxe6 71. c8=Q+ $18 (71. c8=R+ Kd4 $17)) 70. Kd2 {[%emt 0:00:02]} Rd3+ {[%emt 0:00:53]} ({Worse is} 70... Rxf4 71. Ra5+ Kd6 72. Rxf5 $11) 71. Ke2 {[%emt 0:00:06]} Rc3 {[%emt 0:00:50]} 72. Rf6 {[%emt 0:03:09]} Kd5 {[%emt 0:00:30]} 73. Rxf7 {[%emt 0:00:14]} Kd6 {[%emt 0:00:12]} 74. Kd2 {[%emt 0:02:58]} Rxc7 {[%emt 0:01:24]} 75. Rf6+ {[%emt 0:00:42]} Kd5 {[%emt 0:00:11]} 76. Ke3 {[%emt 0:00:13]} Rc3+ {[%emt 0:00:18]} 77. Kf2 {[%emt 0:00:02]} Ke4 {[%emt 0:00:17] A wild game.   Weighted Error Value: White=0.16 (very precise) /Black=0.19 (very precise)   Loses game:     	White=2     	Black=1      Missed win:     	White=2     	Black=1      Mistake:       	White=4     	Black=4      Inaccurate:     	White=2     	Black=3      OK:         	White=14    	Black=17     Best:        	White=9     	Black=12     Strong:       	White=3     	Black=2} 0-1

[Event "25th Nepal Championship 2025"]
[Site "Hetauda"]
[Date "2025.01.29"]
[Round "7.3"]
[White "Rajbhandari, Rijendra"]
[Black "Subedi, Rajan"]
[Result "0-1"]
[Annotator "TA"]
[ECO "A13"]
[WhiteElo "2016"]
[BlackElo "1982"]
[PlyCount "61"]
[EventDate "2025.01.24"]
[EventType "tourn"]
[EventCountry "NEP"]
[SourceTitle "playchess.com"]
[Source "ChessBase"]
[SourceQuality "1"]
[TimeControl "5400+30"]

{[%evp 14,61,73,66,70,64,75,61,55,64,51,68,78,67,121,102,183,184,223,152,141,121,294,279,651,653,577,222,250,242,245,244,233,238,256,232,223,236,364,-327,-347,-642,-621,-661,-664,-665,-664,-908,-793,-900]} 1. d4 {[%emt 0:00:03]} Nf6 {[%emt 0:01:01]} 2. c4 {[%emt 0:00:06]} e6 {[%emt 0:00:29]} 3. g3 {[%emt 0:00:16]} d5 {[%emt 0:00:36]} 4. Nf3 {[%emt 0:00:09]} b6 {[%emt 0:01:30]} 5. Bg2 {[%emt 0:00:38]} Bb7 {[%emt 0:00:08]} 6. cxd5 {[%emt 0:01:09]} Bxd5 {[%emt 0:01:01]} 7. Nc3 {[%emt 0:00:59]} Bb7 {[%emt 0:00:06]} 8. O-O {[%emt 0:00:39]} Be7 {[%emt 0:00:13] A13: English Opening: 1...e6.} 9. Qc2 {[%emt 0:01:36]} O-O {[%emt 0:00:49]} 10. Rd1 {[%emt 0:00:16]} Nbd7 {[%emt 0:02:10] White is slightly better.} 11. e4 {[%emt 0:01:24][%cal Be2e4,Be4e5,Be5e6][%mdl 32]} Qc8 {[%emt 0:01:38]} 12. Bf4 {[%emt 0:03:46]} (12. e5 {is more complex.} Nd5 13. Nxd5 Bxd5 14. Ng5) 12... Nh5 {[%emt 0:14:45]} 13. Be3 {[%emt 0:00:42]} c5 $146 {[%emt 0:03:35]} ({Black should try} 13... Nhf6 $14) (13... Nhf6 14. Rac1 c5 15. d5 exd5 16. exd5 Bd6 17. Bh3 Ba6 18. Bg5 Qc7 19. Qa4 Bc8 {1-0 Bagri,J (2146)-Breggia Bicchiere,A (1514) Davos Summer op 21st 2022 (1)}) 14. d5 $16 {[%emt 0:03:20] White plays in the center} exd5 {[%emt 0:03:19]} (14... Nhf6 $16) 15. Nxd5 $18 {[%emt 0:00:21]} Bd8 {[%emt 0:00:49]} 16. e5 {[%emt 0:10:42] Wards off Nhf6} g6 {[%emt 0:02:17]} 17. Bh3 {[%emt 0:00:19]} Bc6 $2 {[%emt 0:01:41]} (17... Re8 $16) 18. e6 $1 {[%emt 0:00:32]} fxe6 {[%emt 0:04:53]} (18... Qb7 19. exf7+ Rxf7) 19. Bxe6+ {[%emt 0:01:58]} Kg7 {[%emt 0:01:06]} 20. Ne5 {[%emt 0:03:48]} (20. Qc3+ Nhf6 21. Ng5) 20... Nxe5 {[%emt 0:06:11]} 21. Bxc8 {[%emt 0:00:09]} Nf3+ {[%emt 0:01:01]} 22. Kg2 {[%emt 0:03:29]} Rxc8 {[%emt 0:02:58]} 23. Qc3+ {[%emt 0:03:34]} Bf6 {[%emt 0:02:22] [#]} 24. Nxf6 {[%emt 0:01:02]} Nxf6 {[%emt 0:05:11]} 25. Rd6 {[%emt 0:01:10][%cal Od6c6] Rxc6! is the strong threat.} Ba8 {[%emt 0:11:28] [#]} (25... Nd4+ $142 26. Rxc6 Nxc6) 26. Bh6+ $4 {[%emt 0:05:24][%mdl 8192]} Kxh6 $19 {[%emt 0:00:31]} 27. Kf1 $2 {[%emt 0:04:39] White is weak on the light squares} (27. h4 Rce8 (27... Nxh4+ 28. Kh3 $14) 28. Rxf6 Nd4+ (28... Nxh4+ $2 {loses.} 29. Kh3 $18) 29. Kh3 Rxf6 30. Re1) 27... Nxh2+ {[%emt 0:02:13] Black is clearly winning. A dynamic duo of knights.} 28. Ke1 {[%emt 0:00:53]} Nf3+ {[%emt 0:01:58]} 29. Kd1 {[%emt 0:00:07]} Nd4 {[%emt 0:00:30]} 30. g4 {[%emt 0:01:44]} Kg7 {[%emt 0:00:20][%cal Of6e4] ...Ne4! would now be deadly.} 31. g5 {[%emt 0:00:58] Never resign too early!   Weighted Error Value: White=0.76/Black=0.50  Loses game:     	---       	Black=1      Missed win:     	White=1     	---        Mistake:       	White=1     	Black=4      Inaccurate:     	White=1     	---        OK:         	White=8     	Black=4      Best:        	White=1     	Black=3      Strong:       	White=1     	---} 0-1

[Event "25th Nepal Championship 2025"]
[Site "Hetauda"]
[Date "2025.01.29"]
[Round "7.4"]
[White "Phuyal, Aashish"]
[Black "Bhandari, Kshitiz"]
[Result "1/2-1/2"]
[Annotator "TA"]
[ECO "C95"]
[WhiteElo "1981"]
[BlackElo "2070"]
[PlyCount "46"]
[EventDate "2025.01.24"]
[EventType "tourn"]
[EventCountry "NEP"]
[SourceTitle "playchess.com"]
[Source "ChessBase"]
[SourceQuality "1"]
[TimeControl "5400+30"]

{[%evp 20,46,40,35,59,49,50,52,49,33,48,34,62,50,56,20,14,16,16,9,30,9,34,18,66,0,37,0,60]} 1. e4 {[%emt 0:00:03]} e5 {[%emt 0:00:05]} 2. Nf3 {[%emt 0:00:04]} Nc6 {[%emt 0:00:08]} 3. Bb5 {[%emt 0:00:06][%cal Bf1b5,Bb5a4,Ba4b3][%mdl 32]} a6 {[%emt 0:00:07]} 4. Ba4 {[%emt 0:00:05]} Nf6 {[%emt 0:00:19]} 5. O-O {[%emt 0:02:33]} Be7 {[%emt 0:00:11]} 6. Re1 {[%emt 0:00:11]} b5 {[%emt 0:00:09]} 7. Bb3 {[%emt 0:00:07]} d6 {[%emt 0:00:31]} 8. c3 {[%emt 0:00:08]} Nb8 {[%emt 0:00:47]} 9. h3 {[%emt 0:00:21]} Nbd7 {[%emt 0:00:08]} 10. d4 {[%emt 0:00:19]} O-O {[%emt 0:00:04]} 11. Nbd2 {[%emt 0:00:17][%cal Bb1d2,Bd2f1,Bf1g3][%mdl 32]} h6 {[%emt 0:00:37] C95: Closed Ruy Lopez: Breyer Variation with 10 d4.} 12. a4 {[%emt 0:00:23]} Bb7 {[%emt 0:00:22]} 13. Bc2 {[%emt 0:00:08]} c5 {[%emt 0:00:11] White is slightly better.} 14. d5 {[%emt 0:00:11]} c4 $146 {[%emt 0:00:25]} (14... Nh7 15. Nf1 Nb6 16. a5 Nc4 17. b4 Rc8 18. Ng3 Ng5 19. Nd2 cxb4 20. cxb4 Nxd2 21. Bxd2 {0-1 Cervenka,R (2230)-Ryska,J (2195) Moravia-ch8 corr9800 1998 (47)}) 15. Nf1 {[%emt 0:00:26]} Re8 {[%emt 0:00:16]} 16. Be3 {[%emt 0:01:02]} Bf8 {[%emt 0:00:21]} 17. axb5 {[%emt 0:00:40]} axb5 {[%emt 0:00:03]} 18. Rxa8 {[%emt 0:00:15]} Qxa8 {[%emt 0:00:06]} 19. Qa1 {[%emt 0:00:09]} g6 {[%emt 0:00:50]} 20. Ng3 {[%emt 0:01:18]} Kg7 {[%emt 0:00:15]} 21. Qb1 {[%emt 0:00:27]} Kg8 {[%emt 0:00:12]} (21... Qa5 $11) 22. Qa1 {[%emt 0:00:05]} Kg7 {[%emt 0:00:10]} 23. Qb1 {[%emt 0:00:05]} Kg8 {[%emt 0:00:03] Weighted Error Value: White=0.17 (very precise) /Black=0.15 (very precise)   Mistake:       	---       	Black=1      Inaccurate:     	White=2     	Black=1      OK:         	White=3     	Black=6} 1/2-1/2